fUSD/lending_fUSD_20250806
["ID","MTS","AMOUNT","RATE_DAILY","PERIOD"]
[377623799,1754463070259,-400.0,0.0003589,14]
[377623800,1754463070269,-2650.31,0.0003589,14]
[377623801,1754463070278,-400.0,0.0003589,14]
[377623802,1754463070287,-521.52833637,0.0003589,14]
[377623803,1754463070297,-400.0,0.0003589,14]
[377623804,1754463070306,-746.01,0.0003589,14]
[377623805,1754463070316,-400.0,0.0003589,14]
[377623806,1754463070325,-1122.08,0.0003589,14]
[377623807,1754463070335,-1757.22,0.0003589,14]
[377623808,1754463070346,-400.0,0.0003589,14]
[377623809,1754463070357,-400.0,0.0003589,14]
[377623810,1754463070366,-1776.44,0.0003589,14]
[377623811,1754463070376,-400.0,0.0003589,14]
[377623812,1754463070385,-1687.24,0.0003589,14]
[377623813,1754463070394,-416.95,0.0003589,14]
[377623814,1754463070403,-400.0,0.0003589,14]
[377623815,1754463070414,-1748.6,0.0003589,14]
[377623816,1754463070424,-3157.92,0.0003589,14]
[377623817,1754463070434,-400.0,0.0003589,14]
[377623818,1754463070443,-1859.39,0.0003589,14]
[377623819,1754463070453,-1097.81,0.0003589,14]
[377623820,1754463070462,-2859.55,0.0003589,14]
[377623821,1754463070472,-579.06,0.0003589,14]
[377623822,1754463070482,-910.42,0.0003589,14]
[377623823,1754463070491,-1776.73,0.0003589,14]
[377623824,1754463070501,-400.0,0.0003589,14]
[377623825,1754463070510,-400.0,0.0003589,14]
[377623826,1754463070520,-400.0,0.0003589,14]
[377623827,1754463070530,-1297.61,0.0003589,14]
[377623828,1754463070540,-400.0,0.0003589,14]
[377623829,1754463070549,-400.0,0.0003589,14]
[377623830,1754463070558,-648.3,0.0003589,14]
[377623831,1754463070567,-400.0,0.0003589,14]
[377623832,1754463070577,-1054.91,0.0003589,14]
[377623833,1754463070586,-1254.76,0.0003589,14]
[377623834,1754463070596,-910.9,0.0003589,14]
[377623835,1754463070605,-2288.46,0.0003589,14]
[377623836,1754463070615,-452.66,0.0003589,14]
[377623837,1754463070624,-257.83,0.0003589,14]
[377623838,1754463070633,-151.0,0.0003589,7]
[377623839,1754463070643,-151.0,0.0003589,7]
[377623840,1754463070652,-773.79,0.0003589,14]
[377623841,1754463070662,-1545.22,0.0003589,14]
[377623842,1754463070676,-400.0,0.0003589,14]
[377623843,1754463070685,-680.68,0.0003589,14]
[377623844,1754463070695,-400.0,0.0003589,14]
[377623845,1754463070704,-457.62,0.0003589,14]
[377623846,1754463070733,-938.06,0.0003589,14]
[377623847,1754463070743,-11687.81,0.0003589,14]
[377623848,1754463070753,-780.71,0.0003589,14]
[377623849,1754463070763,-400.0,0.0003589,14]
[377623850,1754463070774,-400.0,0.0003589,14]
[377623851,1754463070786,-400.0,0.0003589,14]
[377623852,1754463070795,-400.66688267,0.0003589,14]
[377623853,1754463070804,-1870.72,0.0003589,14]
[377623854,1754463070815,-419.34,0.0003589,14]
[377623855,1754463070825,-400.0,0.0003589,14]
[377623856,1754463070835,-400.0,0.0003589,14]
[377623857,1754463070846,-595.05,0.0003589,14]
[377623858,1754463070857,-400.0,0.0003589,14]
[377623859,1754463070867,-430.53561795,0.0003589,14]
[377623860,1754463070876,-400.0,0.0003589,14]
[377623861,1754463070887,-2036.36,0.0003589,14]
[377623862,1754463070902,-522.84,0.0003589,14]
[377623863,1754463070911,-574.65,0.0003589,14]
[377623864,1754463070923,-400.0,0.0003589,2]
[377623865,1754463070933,-1165.47,0.0003589,14]
[377623866,1754463070943,-1951.7,0.0003589,14]
[377623867,1754463070952,-513.64,0.0003589,14]
[377623868,1754463070962,-400.0,0.0003589,14]
[377623869,1754463070974,-400.0,0.0003589,14]
[377623870,1754463070983,-983.29,0.0003589,14]
[377623871,1754463070992,-400.0,0.0003589,14]
[377623872,1754463071001,-400.0,0.0003589,14]
[377623873,1754463071010,-400.0,0.0003589,14]
[377623874,1754463071021,-1035.39,0.0003589,14]
[377623875,1754463071030,-1430.36,0.0003589,14]
[377623876,1754463071039,-2356.84,0.0003589,14]
[377623877,1754463071048,-400.0,0.0003589,14]
[377623878,1754463071057,-753.66,0.0003589,14]
[377623879,1754463071067,-760.82,0.0003589,14]
[377623880,1754463071076,-232.44037114,0.0003589,14]
[377623881,1754463071086,-432.77,0.0003589,14]
[377623882,1754463071095,-400.0,0.0003589,14]
[377623883,1754463071104,-507.03,0.0003589,14]
[377623884,1754463071114,-400.0,0.0003589,14]
[377623885,1754463071123,-459.07,0.0003589,14]
[377623886,1754463071132,-2755.35,0.0003589,2]
[377623887,1754463071142,-400.0,0.0003589,14]
[377623888,1754463071151,-400.0,0.0003589,14]
[377623889,1754463071160,-1215.36,0.0003589,14]
[377623890,1754463071172,-1289.48,0.0003589,14]
[377623891,1754463071182,-902.7,0.0003589,14]
[377623892,1754463071192,-400.0,0.0003589,14]
[377623893,1754463071202,-151.0,0.0003589,7]
[377623894,1754463071212,-447.56,0.0003589,14]
[377623895,1754463071222,-400.0,0.0003589,14]
[377623896,1754463071232,-151.0,0.0003589,7]
[377623897,1754463071243,-400.0,0.0003589,14]
[377623898,1754463071253,-400.0,0.0003589,14]
[377623899,1754463071263,-400.0,0.0003589,14]
[377623900,1754463071273,-655.96,0.0003589,14]
[377623901,1754463071282,-2229.46,0.0003589,14]
[377623902,1754463071292,-400.0,0.0003589,14]
[377623903,1754463071301,-400.0,0.0003589,14]
[377623904,1754463071312,-340.72635811,0.0003589,14]
[377623905,1754463071321,-400.0,0.0003589,14]
[377623906,1754463071331,-400.0,0.0003589,14]
[377623907,1754463071341,-151.0,0.0003589,7]
[377623908,1754463071351,-151.0,0.0003589,7]
[377623909,1754463071360,-400.0,0.0003589,14]
[377623910,1754463071370,-151.0,0.0003589,7]
[377623911,1754463071379,-400.0,0.0003589,14]
[377623912,1754463071389,-2509.05,0.0003589,14]
[377623913,1754463071398,-164.597001,0.0003589,7]
[377623914,1754463071408,-866.81,0.0003589,14]
[377623915,1754463071419,-1442.65,0.0003589,14]
[377623916,1754463071429,-400.0,0.0003589,14]
[377623917,1754463071438,-605.89,0.0003589,14]
[377623918,1754463071448,-1917.97,0.0003589,14]
[377623919,1754463071457,-728.43,0.0003589,14]
[377623920,1754463071468,-400.0,0.0003589,14]
[377623921,1754463071478,-400.0,0.0003589,14]
[377623922,1754463071487,-442.38,0.0003589,14]
[377623923,1754463071497,-400.0,0.0003589,14]
[377623924,1754463071507,-400.0,0.0003589,14]
[377623925,1754463071517,-2450.08,0.0003589,14]
[377623926,1754463071527,-400.0,0.0003589,14]
[377623927,1754463071537,-400.0,0.0003589,14]
[377623928,1754463071546,-400.0,0.0003589,14]
[377623929,1754463071557,-400.0,0.0003589,14]
[377623930,1754463071566,-400.0,0.0003589,14]
[377623931,1754463071576,-400.0,0.0003589,14]
[377623932,1754463071586,-400.0,0.0003589,14]
[377623933,1754463071596,-766.76,0.0003589,14]
[377623934,1754463071606,-1206.23,0.0003589,14]
[377623935,1754463071615,-400.0,0.0003589,14]
[377623936,1754463071625,-400.0,0.0003589,14]
[377623937,1754463071634,-970.83,0.0003589,14]
[377623938,1754463071644,-400.0,0.0003589,14]
[377623939,1754463071653,-400.0,0.0003589,14]
[377623940,1754463071663,-400.0,0.0003589,14]
[377623941,1754463071672,-1785.82,0.0003589,14]
[377623942,1754463071682,-988.11,0.0003589,14]
[377623943,1754463071691,-1438.73,0.0003589,14]
[377623944,1754463071700,-2096.44,0.0003589,14]
[377623945,1754463071710,-1468.82,0.0003589,14]
[377623946,1754463071719,-400.0,0.0003589,14]
[377623947,1754463071729,-400.0,0.0003589,14]
[377623948,1754463071738,-405.82,0.0003589,14]
[377623949,1754463071748,-726.27,0.0003589,14]
[377623950,1754463071758,-400.0,0.0003589,14]
[377623951,1754463071767,-400.0,0.0003589,14]
[377623952,1754463071779,-400.0,0.0003589,14]
[377623953,1754463071789,-400.0,0.0003589,14]
[377623954,1754463071799,-1850.66,0.0003589,14]
[377623955,1754463071809,-1790.46,0.0003589,14]
[377623956,1754463071819,-1771.27,0.0003589,14]
[377623957,1754463071828,-425.36,0.0003589,14]
[377623958,1754463071837,-598.33,0.0003589,14]
[377623959,1754463071846,-782.66,0.0003589,14]
[377623960,1754463071855,-400.0,0.0003589,14]
[377623961,1754463071865,-400.0,0.0003589,14]
[377623962,1754463071874,-400.0,0.0003589,14]
[377623963,1754463071884,-606.46,0.0003589,14]
[377623964,1754463071893,-400.0,0.0003589,14]
[377623965,1754463071903,-400.0,0.0003589,14]
[377623966,1754463071913,-3373.45,0.0003589,14]
[377623967,1754463071922,-1806.19,0.0003589,14]
[377623968,1754463071932,-400.0,0.0003589,14]
[377623969,1754463071941,-400.0,0.0003589,14]
[377623970,1754463071951,-400.0,0.0003589,14]
[377623971,1754463071962,-760.86,0.0003589,14]
[377623972,1754463071971,-400.0,0.0003589,14]
[377623973,1754463071982,-400.0,0.0003589,14]
[377623974,1754463071993,-1669.66,0.0003589,14]
[377623975,1754463072003,-473.56,0.0003589,14]
[377623976,1754463072012,-400.0,0.0003589,14]
[377623977,1754463072022,-400.0,0.0003589,14]
[377623978,1754463072032,-678.69,0.0003589,14]
[377623979,1754463072042,-1216.16,0.0003589,14]
[377623980,1754463072051,-1073.41,0.0003589,14]
[377623981,1754463072061,-400.0,0.0003589,14]
[377623982,1754463072071,-1000.45,0.0003589,14]
[377623983,1754463072081,-400.0,0.0003589,14]
[377623984,1754463072092,-459.29,0.0003589,14]
[377623985,1754463072102,-400.0,0.0003589,14]
[377623986,1754463072113,-610.27,0.0003589,14]
[377623987,1754463072123,-400.0,0.0003589,120]
[377623988,1754463072135,-1967.24,0.0003589,14]
[377623989,1754463072147,-1774.23,0.0003589,14]
[377623990,1754463072157,-400.0,0.0003589,14]
[377623991,1754463072166,-797.74,0.0003589,14]
[377623992,1754463072175,-1554.56,0.0003589,14]
[377623993,1754463072185,-400.0,0.0003589,14]
[377623994,1754463072195,-400.0,0.0003589,14]
[377623995,1754463072204,-503.69,0.0003589,14]
[377623996,1754463072214,-1315.35,0.0003589,14]
[377623997,1754463072223,-400.0,0.0003589,14]
[377623998,1754463072232,-3178.84,0.0003589,14]
[377623999,1754463072242,-400.0,0.0003589,14]
[377624000,1754463072252,-400.0,0.0003589,14]
[377624001,1754463072262,-400.0,0.0003589,14]
[377624002,1754463072271,-400.0,0.0003589,14]
[377624003,1754463072282,-2375.54,0.0003589,14]
[377624004,1754463072292,-1260.52,0.0003589,14]
[377624005,1754463072303,-876.76,0.0003589,14]
[377624006,1754463072314,-615.89,0.0003589,14]
[377624007,1754463072323,-1983.09,0.0003589,14]
[377624008,1754463072332,-575.39,0.0003589,14]
[377624009,1754463072343,-547.69,0.0003589,14]
[377624010,1754463072353,-924.71,0.0003589,14]
[377624011,1754463072362,-2140.36,0.0003589,14]
[377624012,1754463072372,-585.24,0.0003589,14]
[377624013,1754463072382,-400.0,0.0003589,14]
[377624014,1754463072392,-400.0,0.0003589,14]
[377624015,1754463072401,-400.0,0.0003589,14]
[377624016,1754463072412,-1898.83,0.0003589,14]
[377624017,1754463072424,-2788.12,0.0003589,14]
[377624018,1754463072433,-400.0,0.0003589,14]
[377624019,1754463072443,-400.0,0.0003589,14]
[377624020,1754463072452,-400.0,0.0003589,14]
[377624021,1754463072462,-400.0,0.0003589,14]
[377624022,1754463072471,-2084.77,0.0003589,14]
[377624023,1754463072481,-400.0,0.0003589,14]
[377624024,1754463072491,-400.0,0.0003589,14]
[377624025,1754463072500,-1459.36,0.0003589,14]
[377624026,1754463072510,-941.33,0.0003589,14]
[377624027,1754463072519,-1432.93,0.0003589,14]
[377624028,1754463072529,-2479.85,0.0003589,14]
[377624029,1754463072538,-705.21,0.0003589,14]
[377624030,1754463072547,-400.0,0.0003589,14]
[377624031,1754463072559,-2180.97,0.0003589,14]
[377624032,1754463072569,-1344.13,0.0003589,14]
[377624033,1754463072579,-990.81,0.0003589,14]
[377624034,1754463072588,-400.0,0.0003589,14]
[377624035,1754463072598,-400.0,0.0003589,14]
[377624036,1754463072607,-476.52,0.0003589,14]
[377624037,1754463072618,-2040.3,0.0003589,14]
[377624038,1754463072627,-400.0,0.0003589,14]
[377624039,1754463072637,-400.0,0.0003589,14]
[377624040,1754463072646,-400.0,0.0003589,14]
[377624041,1754463072655,-400.0,0.0003589,14]
[377624042,1754463072667,-1777.34,0.0003589,14]
[377624043,1754463072676,-1015.04,0.0003589,14]
[377624044,1754463072685,-662.91,0.0003589,14]
[377624045,1754463072695,-400.0,0.0003589,14]
[377624046,1754463072705,-400.0,0.0003589,14]
[377624047,1754463072715,-374.35698726,0.0003589,14]
[377624048,1754463072723,-857.04,0.0003589,14]
[377624049,1754463072733,-400.0,0.0003589,14]
[377624050,1754463072742,-1453.83,0.0003589,14]
[377624051,1754463072751,-1441.07,0.0003589,14]
[377624052,1754463072761,-400.0,0.0003589,14]
[377624053,1754463072771,-400.52984215,0.0003589,14]
[377624054,1754463072785,-400.0,0.0003589,14]
[377624055,1754463072794,-560.53,0.0003589,14]
[377624056,1754463072804,-400.0,0.0003589,14]
[377624057,1754463072814,-1094.18,0.0003589,14]
[377624058,1754463072824,-400.0,0.0003589,14]
[377624059,1754463072834,-459.1,0.0003589,14]
[377624060,1754463072843,-1810.02,0.0003589,14]
[377624061,1754463072853,-752.42,0.0003589,14]
[377624062,1754463072863,-1126.38,0.0003589,14]
[377624063,1754463072873,-1029.88,0.0003589,14]
[377624064,1754463072882,-599.01,0.0003589,14]
[377624065,1754463072892,-400.0,0.0003589,14]
[377624066,1754463072902,-3423.08,0.0003589,14]
[377624067,1754463072911,-400.00941436,0.0003589,14]
[377624068,1754463072923,-400.0,0.0003589,14]
[377624069,1754463072933,-400.0,0.0003589,14]
[377624070,1754463072943,-400.0,0.0003589,14]
[377624071,1754463072952,-1692.67,0.0003589,14]
[377624072,1754463072962,-405.88,0.0003589,14]
[377624073,1754463072974,-400.0,0.0003589,14]
[377624074,1754463072983,-400.0,0.0003589,14]
[377624075,1754463072993,-426.78,0.0003589,14]
[377624076,1754463073002,-1829.58,0.0003589,14]
[377624077,1754463073011,-1249.04,0.0003589,14]
[377624078,1754463073021,-400.0,0.0003589,14]
[377624079,1754463073031,-1345.09,0.0003589,14]
[377624080,1754463073040,-1132.98,0.0003589,14]
[377624081,1754463073051,-400.0,0.0003589,14]
[377624082,1754463073061,-325.69,0.0003589,14]
[377624083,1754463073070,-513.57,0.0003589,14]
[377624084,1754463073080,-547.47,0.0003589,14]
[377624085,1754463073089,-631.39,0.0003589,14]
[377624086,1754463073098,-400.0,0.0003589,14]
[377624087,1754463073107,-400.0,0.0003589,14]
[377624088,1754463073116,-1611.26,0.0003589,14]
[377624089,1754463073126,-740.58,0.0003589,14]
[377624090,1754463073135,-548.67,0.0003589,14]
[377624091,1754463073145,-256.6610664,0.0003589,14]
[377624092,1754463073154,-2075.56,0.0003589,14]
[377624093,1754463073164,-1760.54,0.0003589,14]
[377624094,1754463073174,-445.08,0.0003589,14]
[377624095,1754463073184,-400.0,0.0003589,14]
[377624096,1754463073193,-400.0,0.0003589,14]
[377624097,1754463073203,-400.0,0.0003589,14]
[377624098,1754463073212,-400.0,0.0003589,14]
[377624099,1754463073221,-400.0,0.0003589,14]
[377624100,1754463073231,-1819.03,0.0003589,14]
[377624101,1754463073241,-505.01,0.0003589,14]
[377624102,1754463073251,-1746.01,0.0003589,14]
[377624103,1754463073261,-400.0,0.0003589,14]
[377624104,1754463073271,-2211.93,0.0003589,14]
[377624105,1754463073280,-400.0,0.0003589,14]
[377624106,1754463073290,-400.0,0.0003589,14]
[377624107,1754463073300,-927.94,0.0003589,14]
[377624108,1754463073309,-2563.43,0.0003589,14]
[377624109,1754463073319,-400.0,0.0003589,14]
[377624110,1754463073328,-400.0,0.0003589,14]
[377624111,1754463073338,-1310.67,0.0003589,14]
[377624112,1754463073348,-1001.48,0.0003589,14]
[377624113,1754463073357,-400.0,0.0003589,14]
[377624114,1754463073367,-400.0,0.0003589,14]
[377624115,1754463073376,-1878.95,0.0003589,14]
[377624116,1754463073385,-400.0,0.0003589,14]
[377624117,1754463073395,-4392.71,0.0003589,14]
[377624118,1754463073404,-400.0,0.0003589,14]
[377624119,1754463073414,-400.0,0.0003589,14]
[377624120,1754463073427,-535.43,0.0003589,14]
[377624121,1754463073437,-400.0,0.0003589,14]
[377624122,1754463073447,-1422.63,0.0003589,14]
[377624123,1754463073456,-711.34,0.0003589,14]
[377624124,1754463073465,-713.78,0.0003589,14]
[377624125,1754463073475,-587.04,0.0003589,14]
[377624126,1754463073485,-1566.78,0.0003589,14]
[377624127,1754463073494,-400.0,0.0003589,14]
[377624128,1754463073504,-252.12994462,0.0003589,14]
[377624129,1754463073514,-1800.72,0.0003589,14]
[377624130,1754463073523,-400.0,0.0003589,14]
[377624131,1754463073535,-1380.61,0.0003589,14]
[377624132,1754463073545,-922.81,0.0003589,14]
[377624133,1754463073554,-777.48,0.0003589,14]
[377624134,1754463073564,-400.0,0.0003589,14]
[377624135,1754463073573,-400.0,0.0003589,14]
[377624136,1754463073583,-1923.27,0.0003589,14]
[377624137,1754463073592,-400.0,0.0003589,14]
[377624138,1754463073601,-400.0,0.0003589,14]
[377624139,1754463073611,-500.0,0.0003589,10]
[377624140,1754463073624,-1928.99,0.0003589,14]
[377624141,1754463073639,-639.82,0.0003589,14]
[377624142,1754463073649,-1212.95,0.0003589,14]
[377624143,1754463073659,-245.31487842,0.0003589,10]
[377624144,1754463073672,-1840.81,0.0003589,14]
[377624145,1754463073682,-400.0,0.0003589,14]
[377624146,1754463073692,-400.0,0.0003589,14]
[377624147,1754463073702,-1081.93,0.0003589,14]
[377624148,1754463073712,-905.9,0.0003589,14]
[377624149,1754463073722,-400.0,0.0003589,14]
[377624150,1754463073731,-400.0,0.0003589,14]
[377624151,1754463073741,-1644.75,0.0003589,14]
[377624152,1754463073751,-912.07,0.0003589,14]
[377624153,1754463073761,-400.0,0.0003589,14]
[377624154,1754463073770,-400.0,0.0003589,14]
[377624155,1754463073784,-400.0,0.0003589,14]
[377624156,1754463073794,-3362.38,0.0003589,14]
[377624157,1754463073804,-400.0,0.0003589,14]
[377624158,1754463073814,-400.0,0.0003589,14]
[377624159,1754463073825,-400.0,0.0003589,14]
[377624160,1754463073834,-553.87,0.0003589,14]
[377624161,1754463073844,-504.98,0.0003589,14]
[377624162,1754463073854,-400.0,0.0003589,14]
[377624163,1754463073864,-2555.73,0.0003589,14]
[377624164,1754463073875,-1060.2,0.0003589,14]
[377624165,1754463073886,-400.0,0.0003589,14]
[377624166,1754463073896,-1385.49,0.0003589,14]
[377624167,1754463073906,-400.0,0.0003589,14]
[377624168,1754463073917,-2085.53,0.0003589,14]
[377624169,1754463073927,-400.0,0.0003589,14]
[377624170,1754463073937,-1362.78,0.0003589,14]
[377624171,1754463073947,-400.0,0.0003589,14]
[377624172,1754463073958,-428.64,0.0003589,14]
[377624173,1754463073967,-1713.72,0.0003589,14]
[377624174,1754463073977,-994.48,0.0003589,14]
[377624175,1754463073987,-400.0,0.0003589,14]
[377624176,1754463073998,-400.0,0.0003589,14]
[377624177,1754463074008,-1802.19,0.0003589,14]
[377624178,1754463074018,-1703.82,0.0003589,14]
[377624179,1754463074028,-763.83,0.0003589,14]
[377624180,1754463074039,-2601.36,0.0003589,14]
[377624181,1754463074049,-400.0,0.0003589,14]
[377624182,1754463074059,-191.49310835,0.0003589,14]
[377624183,1754463074070,-2902.08,0.0003589,14]
[377624184,1754463074080,-3494.4,0.0003589,14]
[377624185,1754463074089,-531.6172178,0.0003589,14]
[377624186,1754463074099,-2500.17,0.0003589,14]
[377624187,1754463074109,-1981.99,0.0003589,14]
[377624188,1754463074119,-400.0,0.0003589,14]
[377624189,1754463074129,-400.0,0.0003589,14]
[377624190,1754463074139,-400.0,0.0003589,14]
[377624191,1754463074149,-2421.74,0.0003589,14]
[377624192,1754463074159,-581.86,0.0003589,14]
[377624193,1754463074170,-888.84,0.0003589,14]
[377624194,1754463074180,-400.0,0.0003589,14]
[377624195,1754463074191,-454.8,0.0003589,14]
[377624196,1754463074201,-400.0,0.0003589,14]
[377624197,1754463074211,-993.68,0.0003589,14]
[377624198,1754463074221,-400.0,0.0003589,14]
[377624199,1754463074230,-2754.05,0.0003589,14]
[377624200,1754463074241,-400.0,0.0003589,14]
[377624201,1754463074251,-2721.87,0.0003589,14]
[377624202,1754463074261,-1832.85,0.0003589,14]
[377624203,1754463074271,-468.65,0.0003589,14]
[377624204,1754463074280,-2640.74,0.0003589,14]
[377624205,1754463074289,-400.0,0.0003589,14]
[377624206,1754463074299,-1847.08,0.0003589,14]
[377624207,1754463074308,-1224.93,0.0003589,14]
[377624208,1754463074317,-400.0,0.0003589,14]
[377624209,1754463074327,-1000.0,0.0003589,30]
[377624210,1754463074336,-400.0,0.0003589,14]
[377624211,1754463074345,-414.17,0.0003589,14]
[377624212,1754463074355,-400.0,0.0003589,14]
[377624213,1754463074364,-500.0,0.0003589,31]
[377624214,1754463074373,-400.0,0.0003589,14]
[377624215,1754463074383,-400.0,0.0003589,14]
[377624216,1754463074392,-1711.21,0.0003589,14]
[377624217,1754463074402,-357.92,0.0003589,14]
[377624218,1754463074411,-1631.03,0.0003589,14]
[377624219,1754463074421,-400.0,0.0003589,14]
[377624220,1754463074431,-763.49,0.0003589,14]
[377624221,1754463074440,-2469.61,0.0003589,14]
[377624222,1754463074450,-759.98,0.0003589,14]
[377624223,1754463074460,-400.0,0.0003589,14]
[377624224,1754463074470,-844.85,0.0003589,14]
[377624225,1754463074480,-400.0,0.0003589,14]
[377624226,1754463074490,-1355.42,0.0003589,14]
[377624227,1754463074500,-2281.55,0.0003589,14]
[377624228,1754463074509,-2015.83,0.0003589,14]
[377624229,1754463074519,-400.0,0.0003589,14]
[377624230,1754463074529,-1559.99,0.0003589,14]
[377624231,1754463074539,-1642.59,0.0003589,14]
[377624232,1754463074550,-2443.0,0.0003589,14]
[377624233,1754463074560,-302.98969637,0.0003589,14]
[377624234,1754463074571,-1650.57,0.0003589,14]
[377624235,1754463074581,-400.0,0.0003589,14]
[377624236,1754463074592,-867.44,0.0003589,14]
[377624237,1754463074603,-400.0,0.0003589,14]
[377624238,1754463074614,-1032.79,0.0003589,14]
[377624239,1754463074626,-400.0,0.0003589,14]
[377624240,1754463074643,-2745.35,0.0003589,14]
[377624241,1754463074663,-811.53,0.0003589,14]
[377624242,1754463074684,-1447.74,0.0003589,14]
[377624243,1754463074705,-1116.41,0.0003589,14]
[377624244,1754463074724,-400.0,0.0003589,14]
[377624245,1754463074745,-1972.21,0.0003589,14]
[377624246,1754463074757,-400.0,0.0003589,14]
[377624247,1754463074767,-4636.23,0.0003589,14]
[377624248,1754463074778,-400.0,0.0003589,14]
[377624249,1754463074790,-2712.79,0.0003589,14]
[377624250,1754463074800,-2042.35,0.0003589,14]
[377624251,1754463074810,-411.98,0.0003589,14]
[377624252,1754463074819,-400.0,0.0003589,14]
[377624253,1754463074830,-151.0,0.0003589,7]
[377624254,1754463074840,-567.5,0.0003589,14]
[377624255,1754463074850,-1743.78,0.0003589,14]
[377624256,1754463074860,-151.0,0.0003589,7]
[377624257,1754463074870,-151.0,0.0003589,7]
[377624258,1754463074880,-265.249527,0.0003589,7]
[377624259,1754463074889,-656.34,0.0003589,14]
[377624260,1754463074899,-555.34,0.0003589,14]
[377624261,1754463074909,-207.26091756,0.0003589,14]
[377624262,1754463074919,-848.62,0.0003589,14]
[377624263,1754463074929,-151.0,0.0003589,7]
[377624264,1754463074939,-400.0,0.0003589,14]
[377624265,1754463074948,-1811.11,0.0003589,14]
[377624266,1754463074958,-400.0,0.0003589,14]
[377624267,1754463074968,-400.0,0.0003589,14]
[377624268,1754463074978,-1888.44,0.0003589,14]
[377624269,1754463074989,-400.0,0.0003589,14]
[377624270,1754463074999,-400.0,0.0003589,14]
[377624271,1754463075009,-810.48,0.0003589,14]
[377624272,1754463075019,-1555.97,0.0003589,14]
[377624273,1754463075029,-2068.87,0.0003589,14]
[377624274,1754463075039,-400.0,0.0003589,14]
[377624275,1754463075049,-880.44,0.0003589,14]
[377624276,1754463075059,-748.99233873,0.0003589,14]
[377624277,1754463075069,-738.3,0.0003589,14]
[377624278,1754463075079,-400.0,0.0003589,14]
[377624279,1754463075089,-594.54,0.0003589,14]
[377624280,1754463075099,-400.0,0.0003589,14]
[377624281,1754463075109,-1657.85,0.0003589,14]
[377624282,1754463075119,-1198.72,0.0003589,14]
[377624283,1754463075129,-400.0,0.0003589,14]
[377624284,1754463075139,-824.18,0.0003589,14]
[377624285,1754463075149,-2539.05,0.0003589,14]
[377624286,1754463075159,-1190.93,0.0003589,14]
[377624287,1754463075169,-579.41,0.0003589,14]
[377624288,1754463075179,-434.36,0.0003589,14]
[377624289,1754463075189,-2125.66,0.0003589,14]
[377624290,1754463075199,-1616.09,0.0003589,14]
[377624291,1754463075209,-726.31,0.0003589,14]
[377624292,1754463075219,-2079.21,0.0003589,14]
[377624293,1754463075229,-1531.59,0.0003589,14]
[377624294,1754463075241,-1513.03,0.0003589,14]
[377624295,1754463075251,-400.0,0.0003589,14]
[377624296,1754463075261,-400.0,0.0003589,14]
[377624297,1754463075271,-400.0,0.0003589,14]
[377624298,1754463075282,-4057.06,0.0003589,14]